fUST/lending_fUST_20260129
["ID","MTS","AMOUNT","RATE_DAILY","PERIOD"]
[403875955,1769616642924,-1000.0,0.00013821,2]
[403875956,1769616642932,-300.0,0.00013926,2]
[403875957,1769616642941,-587.0,0.00013926,2]
[403875958,1769616642951,-161.0,0.00013926,2]
[403875959,1769616642960,-494.0,0.00013926,2]
[403875960,1769616642969,-180.0,0.00013968,2]
[403875961,1769616642979,-2351.0,0.00013969,2]
[403875962,1769616642989,-206.36876951,0.00013989,2]
[403875963,1769616643000,-153.28,0.00014,2]
[403875964,1769616643009,-160.09522763,0.00014005,2]
[403875965,1769616643018,-100000.0,0.00014006,2]
[403875966,1769616643028,-600.0,0.00014221,2]
[403875967,1769616643038,-502.14214416,0.00014247,2]
[403875968,1769616643048,-928.72037754,0.00014247,2]
[403875969,1769616643057,-172.30391573,0.00014247,2]
[403875970,1769616643067,-653.67992137,0.00014247,2]
[403875971,1769616643077,-1000.0,0.00014247,2]
[403875972,1769616643086,-626.86038304,0.00014247,2]
[403875973,1769616643096,-175.49146446,0.00014247,2]
[403875974,1769616643105,-509.85507396,0.00014247,2]
[403875975,1769616643114,-159.31465189,0.00014247,2]
[403875976,1769616643123,-250.0,0.00014247,2]
[403875977,1769616643132,-1003.36640104,0.00014247,2]
[403875978,1769616643142,-800.60461598,0.00014247,2]
[403875979,1769616643152,-1146.16076302,0.00014247,2]
[403875980,1769616643161,-1000.0,0.00014247,2]
[403875981,1769616643171,-1000.0,0.00014247,2]
[403875982,1769616643181,-501.75253763,0.00014247,2]
[403875983,1769616643190,-898.31661661,0.00014247,2]
[403875984,1769616643199,-1002.16076125,0.00014247,2]
[403875985,1769616643209,-653.47281249,0.00014247,2]
[403875986,1769616643218,-722.3651231,0.00014247,2]
[403875987,1769616643228,-378.71570647,0.00014247,2]
[403875988,1769616643237,-1000.0,0.00014247,2]
[403875989,1769616643246,-1001.40716094,0.00014247,2]
[403875990,1769616643255,-1134.23032778,0.00014247,2]
[403875991,1769616643265,-501.67094293,0.00014247,2]
[403875992,1769616643274,-505.03835844,0.00014247,2]
[403875993,1769616643283,-1000.0,0.00014247,2]
[403875994,1769616643292,-501.48666107,0.00014247,2]
[403875995,1769616643301,-508.49522103,0.00014247,2]
[403875996,1769616643310,-1000.0,0.00014247,2]
[403875997,1769616643319,-1000.0,0.00014247,2]
[403875998,1769616643329,-1500.0,0.00014368,2]
[403875999,1769616643338,-1500.0,0.00014368,2]
[403876000,1769616643347,-1500.0,0.00014368,2]
[403876001,1769616643356,-1500.0,0.00014368,2]
[403876002,1769616643365,-1500.0,0.00014368,2]
[403876003,1769616643374,-1500.0,0.00014368,2]
[403876004,1769616643384,-864.0,0.00014533,2]
[403876005,1769616643393,-153.28,0.000147,2]
[403876006,1769616643402,-900.0,0.00014768,2]
[403876007,1769616643411,-500.0,0.00014795,2]
[403876008,1769616643420,-300.0,0.00014795,2]
[403876009,1769616643430,-1196.49020811,0.00014795,2]
[403876010,1769616643439,-500.0,0.00014795,2]
[403876011,1769616643448,-500.0,0.00014795,2]
[403876012,1769616643457,-500.68775555,0.00014795,2]
[403876013,1769616643467,-526.28781016,0.00014795,2]
[403876014,1769616643476,-1500.0,0.00014795,2]
[403876015,1769616643485,-1611.71757987,0.00014916,2]
[403876016,1769616643495,-2000.0,0.00014916,2]
[403876017,1769616643505,-2000.0,0.00014916,2]
[403876018,1769616643514,-2000.0,0.00014916,2]
[403876019,1769616643523,-2000.0,0.00014916,2]
[403876020,1769616643532,-2000.0,0.00014916,2]
[403876021,1769616643541,-390.27243384,0.00015089,2]
[403876022,1769616643551,-3507.40954272,0.00015244,2]
[403876023,1769616643560,-823.0,0.00015295,2]
[403876024,1769616643569,-600.0,0.00015316,2]
[403876025,1769616643579,-2000.0,0.00015342,2]
[403876026,1769616643588,-1729.0,0.00015366,2]
[403876027,1769616643597,-153.28,0.000154,2]
[403876028,1769616643607,-1000.0,0.00015464,2]
[403876029,1769616643616,-2506.71511543,0.00015464,2]
[403876030,1769616643626,-1500.0,0.00015464,2]
[403876031,1769616643636,-2500.0,0.00015464,2]
[403876032,1769616643645,-1512.54102297,0.0001589,2]
[403876033,1769616643654,-1000.0,0.00015986,2]
[403876034,1769616643664,-574.12268118,0.00016012,2]
[403876035,1769616643673,-153.28,0.000161,2]
[403876036,1769616643683,-500.0,0.00016438,2]
[403876037,1769616643692,-243.26900401,0.00016438,2]
[403876038,1769616643702,-150.42150351,0.00016438,2]
[403876039,1769616643711,-169.0,0.0001663,3]
[403876040,1769616643721,-1152.0,0.00016798,2]
[403876041,1769616643730,-153.28,0.000168,2]
[403876042,1769616643739,-441.92613832,0.00017089,2]
[403876043,1769616643748,-160.0,0.00017117,2]
[403876044,1769616643759,-1041.66666667,0.00017117,2]
[403876045,1769616643768,-153.28,0.000175,2]
[403876046,1769616643777,-1000.0,0.00017585,2]
[403876047,1769616643787,-244.0,0.00017585,2]
[403876048,1769616643796,-3507.40954272,0.00017687,2]
[403876049,1769616643805,-153.28,0.000182,2]
[403876050,1769616643814,-1613.0,0.00018449,2]
[403876051,1769616643823,-153.28,0.000189,2]
[403876052,1769616643832,-493.5798428,0.00019089,2]
[403876053,1769616643841,-175.69,0.000193,2]
[403876054,1769616643850,-1381.6,0.000193,2]
[403876055,1769616643859,-5520.1,0.000193,2]
[403876056,1769616643869,-1000.0,0.00019343,2]
[403876057,1769616643878,-492.0,0.00019343,2]
[403876058,1769616643887,-153.28,0.000196,2]
[403876059,1769616643896,-3507.40954272,0.00020131,2]
[403876060,1769616643906,-232.0,0.00020262,2]
[403876061,1769616643915,-153.28,0.000203,2]
[403876062,1769616643924,-150.0,0.00021,2]
[403876063,1769616643933,-153.28,0.00021,2]
[403876064,1769616643942,-545.23354728,0.00021089,2]
[403876065,1769616643951,-1000.0,0.00021277,10]
[403876066,1769616643960,-791.0,0.00021277,10]
[403876067,1769616643969,-153.28,0.000217,2]
[403876068,1769616643978,-293.17,0.00022,7]
[403876069,1769616643991,-153.28,0.000224,2]
[403876070,1769616644001,-3507.40954272,0.00022575,2]
[403876071,1769616644013,-596.88725176,0.00023089,2]
[403876072,1769616644023,-157.72,0.000231,2]
[403876073,1769616644032,-153.28,0.000231,2]
[403876074,1769616644043,-250.000238,0.00023288,2]
[403876075,1769616644052,-250.000238,0.00023288,2]
[403876076,1769616644062,-250.000238,0.00023288,2]
[403876077,1769616644070,-250.000238,0.00023288,2]
[403876078,1769616644080,-1000.0,0.00023405,10]
[403876079,1769616644089,-1000.0,0.00023405,10]
[403876080,1769616644099,-153.28,0.000238,2]
[403876081,1769616644108,-630.0,0.00024366,2]
[403876082,1769616644117,-2150.0,0.00024366,2]
[403876083,1769616644131,-1369.0,0.00024366,2]
[403876084,1769616644140,-716.0,0.00024378,2]
[403876085,1769616644149,-180.381,0.00024378,2]
[403876086,1769616644159,-418.0,0.00024378,2]
[403876087,1769616644168,-418.0,0.00024378,2]
[403876088,1769616644177,-153.28,0.000245,2]
[403876089,1769616644187,-150.0,0.00024534,2]
[403876090,1769616644196,-150.0,0.00024534,2]
[403876091,1769616644206,-150.0,0.00024534,2]
[403876092,1769616644215,-150.0,0.00024534,2]
[403876093,1769616644223,-150.0,0.00024534,2]
[403876094,1769616644233,-500.0,0.00024786,2]
[403876095,1769616644242,-5520.1,0.000249,2]
[403876096,1769616644251,-581198.873467,0.000249,2]
[403876097,1769616644261,-250.000238,0.000249,7]
[403876098,1769616644270,-250.000238,0.000249,7]
[403876099,1769616644279,-250.000238,0.000249,7]
[403876100,1769616644288,-250.000238,0.000249,7]
[403876101,1769616644298,-3507.40954272,0.00025018,2]
[403876102,1769616644307,-648.54095624,0.00025089,2]
[403876103,1769616644317,-153.28,0.000252,2]
[403876104,1769616644327,-1381.6,0.000253,14]
[403876105,1769616644337,-1000.0,0.00025746,10]
[403876106,1769616644346,-1000.0,0.00025746,10]
[403876107,1769616644355,-579.0,0.00025746,10]
[403876108,1769616644364,-153.28,0.000259,2]
[403876109,1769616644373,-160.0,0.00025945,18]
[403876110,1769616644382,-153.28,0.000266,2]
[403876111,1769616644392,-293.17,0.000269,7]
[403876112,1769616644402,-1957.856,0.00026994,2]
[403876113,1769616644412,-4246.65524428,0.00026994,2]
[403876114,1769616644422,-167.0,0.00027,7]
[403876115,1769616644431,-190.0,0.00027,7]
[403876116,1769616644440,-2030.296672,0.00027049,2]
[403876117,1769616644450,-700.19466072,0.00027089,2]
[403876118,1769616644459,-2105.41764886,0.00027104,2]
[403876119,1769616644469,-2183.31810187,0.00027159,2]
[403876120,1769616644478,-2264.10087164,0.00027214,2]
[403876121,1769616644488,-221.75860918,0.00027245,5]
[403876122,1769616644498,-2347.87260389,0.00027269,2]
[403876123,1769616644507,-153.28,0.000273,2]
[403876124,1769616644517,-2434.74389024,0.00027324,2]
[403876125,1769616644526,-630.0,0.00027366,2]
[403876126,1769616644535,-2150.0,0.00027366,2]
[403876127,1769616644545,-1369.0,0.00027366,2]
[403876128,1769616644554,-716.0,0.00027378,2]
[403876129,1769616644563,-179.0,0.00027378,2]
[403876130,1769616644574,-418.0,0.00027378,2]
[403876131,1769616644583,-418.0,0.00027378,2]
[403876132,1769616644593,-2524.82941417,0.00027379,2]
[403876133,1769616644603,-410.33709573,0.00027396,2]
[403876134,1769616644612,-1641.34838293,0.00027396,2]
[403876135,1769616644622,-3693.0338616,0.00027396,2]
[403876136,1769616644631,-6565.39353173,0.00027396,2]
[403876137,1769616644641,-10258.42739332,0.00027396,2]
[403876138,1769616644651,-665.3002178,0.00027396,2]
[403876139,1769616644660,-2661.2008712,0.00027396,2]
[403876140,1769616644670,-5987.7019602,0.00027396,2]
[403876141,1769616644679,-863.08671793,0.00027396,2]
[403876142,1769616644688,-3448.89452483,0.00027396,2]
[403876143,1769616644698,-157.1173049,0.00027397,2]
[403876144,1769616644707,-2618.2481025,0.00027434,2]
[403876145,1769616644717,-3507.40954272,0.00027462,2]
[403876146,1769616644726,-2673.39914073,0.00027489,2]
[403876147,1769616644735,-150.0,0.00027534,2]
[403876148,1769616644745,-150.0,0.00027534,2]
[403876149,1769616644754,-150.0,0.00027534,2]
[403876150,1769616644764,-150.0,0.00027534,2]
[403876151,1769616644774,-190.0,0.00027671,14]
[403876152,1769616644783,-250.0,0.00027945,5]
[403876153,1769616644793,-250.0,0.00027945,5]
[403876154,1769616644803,-153.28,0.00028,2]
[403876155,1769616644812,-1000.0,0.0002832,30]
[403876156,1769616644822,-1000.0,0.0002832,30]
[403876157,1769616644832,-1000.0,0.0002832,30]
[403876158,1769616644841,-5000.0,0.00028483,19]
[403876159,1769616644850,-350.0,0.00028493,5]
[403876160,1769616644859,-350.0,0.00028493,5]
[403876161,1769616644868,-175.69,0.000285,7]
[403876162,1769616644878,-1381.6,0.000285,14]
[403876163,1769616644887,-153.28,0.000287,2]
[403876164,1769616644896,-190.0,0.00028767,14]
[403876165,1769616644905,-5520.1,0.000288,2]
[403876166,1769616644915,-450.0,0.00029041,5]
[403876167,1769616644925,-450.0,0.00029041,5]
[403876168,1769616644934,-751.8483652,0.00029089,2]
[403876169,1769616644943,-153.28,0.000294,2]
[403876170,1769616644953,-730.0,0.00029503,3]
[403876171,1769616644962,-550.0,0.00029589,5]
[403876172,1769616644971,-236.57189686,0.00029589,5]
[403876173,1769616644981,-293.17,0.000296,7]
[403876174,1769616644992,-2296.8437706,0.00029634,2]
[403876175,1769616645002,-1831.0555524,0.00029634,2]
[403876176,1769616645012,-151.0,0.00029639,3]
[403876177,1769616645022,-151.0,0.00029639,3]
[403876178,1769616645033,-250.0,0.00029639,3]
[403876179,1769616645043,-289.41339882,0.00029639,3]
[403876180,1769616645052,-1000.0,0.00029639,3]
[403876181,1769616645062,-1000.0,0.00029639,3]
[403876182,1769616645073,-250.0,0.00029639,3]
[403876183,1769616645083,-578.20924308,0.00029639,3]
[403876184,1769616645092,-599.60298507,0.00029639,3]
[403876185,1769616645102,-347.10088932,0.00029639,3]
[403876186,1769616645111,-174.61919141,0.00029639,3]
[403876187,1769616645120,-181.08010149,0.00029639,3]
[403876188,1769616645130,-187.78006525,0.00029639,3]
[403876189,1769616645139,-194.72792766,0.00029639,3]
[403876190,1769616645149,-201.93286099,0.00029639,3]
[403876191,1769616645158,-209.40437684,0.00029639,3]
[403876192,1769616645169,-217.15233878,0.00029639,3]
[403876193,1769616645178,-174.61919141,0.00029639,3]
[403876194,1769616645187,-2312.83697232,0.00029639,3]
[403876195,1769616645320,-225.18697532,0.00029639,3]
[403876196,1769616645330,-478.75725327,0.00029639,3]
[403876197,1769616645339,-2398.4119403,0.00029639,3]
[403876198,1769616645349,-181.08010149,0.00029639,3]
[403876199,1769616645358,-2487.15318209,0.00029639,3]
[403876200,1769616645367,-496.47127164,0.00029639,3]
[403876201,1769616645376,-2579.17784983,0.00029639,3]
[403876202,1769616645386,-514.84070869,0.00029639,3]
[403876203,1769616645395,-459.4358162,0.00029639,3]
[403876204,1769616645404,-526.38521894,0.00029639,3]
[403876205,1769616645414,-242.15909246,0.00029639,3]
[403876206,1769616645424,-250.0,0.00029639,3]
[403876207,1769616645433,-169.33681227,0.00029639,3]
[403876208,1769616645443,-251.11897888,0.00029639,3]
[403876209,1769616645452,-260.4103811,0.00029639,3]
[403876210,1769616645461,-270.0455652,0.00029639,3]
[403876211,1769616645471,-280.03725112,0.00029639,3]
[403876212,1769616645481,-290.39862941,0.00029639,3]
[403876213,1769616645490,-301.1433787,0.00029639,3]
[403876214,1769616645500,-151.0,0.00029639,3]
[403876215,1769616645512,-988.8744102,0.00029667,2]
[403876216,1769616645522,-161.0,0.00029709,3]
[403876217,1769616645532,-400.0,0.00029823,3]
[403876218,1769616645541,-194.6865296,0.00029836,30]
[403876219,1769616645551,-194.6865296,0.00029836,30]
[403876220,1769616645560,-194.6865296,0.00029836,30]
[403876221,1769616645569,-194.6865296,0.00029836,30]
[403876222,1769616645578,-400.0,0.00029884,3]
[403876223,1769616645588,-160.0,0.000299,3]
[403876224,1769616645597,-1041.66666667,0.000299,3]
[403876225,1769616645607,-3507.40954272,0.00029906,2]
[403876226,1769616645617,-400.0,0.00029932,3]
[403876227,1769616645627,-43610.27373253,0.0003,7]
[403876228,1769616645636,-758.60639547,0.0003,7]
[403876229,1769616645645,-3034.42558189,0.0003,7]
[403876230,1769616645655,-6820.63010169,0.0003,7]
[403876231,1769616645664,-4378.77122172,0.0003,7]
[403876232,1769616645674,-160.0,0.0003,7]
[403876233,1769616645683,-1041.66666667,0.0003,7]
[403876234,1769616645692,-1000.0,0.0003,7]
[403876235,1769616645702,-1000.0,0.0003,7]
[403876236,1769616645712,-1000.0,0.0003,7]
[403876237,1769616645721,-1000.0,0.0003,7]
[403876238,1769616645731,-1000.0,0.0003,7]
[403876239,1769616645741,-1000.0,0.0003,7]
[403876240,1769616645750,-1000.0,0.0003,7]
[403876241,1769616645759,-1000.0,0.0003,7]
[403876242,1769616645768,-1000.0,0.0003,7]
[403876243,1769616645778,-1000.0,0.0003,7]
[403876244,1769616645788,-1000.0,0.0003,7]
[403876245,1769616645797,-1000.0,0.0003,7]
[403876246,1769616645806,-1000.0,0.0003,7]
[403876247,1769616645816,-1000.0,0.0003,7]
[403876248,1769616645825,-1000.0,0.0003,7]
[403876249,1769616645834,-1000.0,0.0003,7]
[403876250,1769616645844,-1000.0,0.0003,7]
[403876251,1769616645855,-664.65167582,0.0003,7]
[403876252,1769616645864,-1000.0,0.0003,7]
[403876253,1769616645873,-1000.0,0.0003,7]
[403876254,1769616645883,-1000.0,0.0003,7]
[403876255,1769616645892,-1000.0,0.0003,7]
[403876256,1769616645902,-937.77202557,0.0003,7]
[403876257,1769616645911,-178.5494496,0.0003,7]
[403876258,1769616645921,-151.0,0.0003,7]
[403876259,1769616645931,-151.0,0.0003,7]
[403876260,1769616645940,-151.0,0.0003,7]
[403876262,1769616645950,-151.0,0.0003,7]
[403876263,1769616645959,-151.0,0.0003,7]
[403876265,1769616645968,-151.0,0.0003,7]
[403876267,1769616645978,-151.0,0.0003,7]
[403876269,1769616645988,-151.0,0.0003,7]
[403876271,1769616646000,-151.0,0.0003,7]
[403876273,1769616646010,-151.0,0.0003,7]
[403876275,1769616646019,-151.0,0.0003,7]
[403876277,1769616646032,-158.59,0.000301,2]
[403876279,1769616646042,-153.28,0.000301,2]
[403876281,1769616646051,-150.0,0.0003013,2]
[403876283,1769616646061,-175.20269643,0.00030137,2]
[403876285,1769616646072,-650.0,0.00030137,5]
[403876287,1769616646082,-197.0,0.00030205,14]
[403876289,1769616646092,-150.21390958,0.00030274,60]
[403876290,1769616646102,-200.57111926,0.00030274,60]
[403876291,1769616646112,-500.0,0.00030274,60]
[403876292,1769616646124,-253.92909004,0.00030274,60]
[403876293,1769616646135,-150.60770649,0.00030274,60]
[403876294,1769616646145,-500.0,0.00030274,60]
[403876295,1769616646155,-500.0,0.00030274,60]
[403876296,1769616646164,-157.72,0.000303,2]
[403876297,1769616646173,-41199.39838599,0.000303,30]
[403876298,1769616646183,-446710.47,0.000303,6]
[403876299,1769616646192,-72829.46,0.000303,6]
[403876300,1769616646202,-250.000238,0.00030366,31]
[403876301,1769616646212,-250.000238,0.00030366,31]
[403876302,1769616646221,-250.000238,0.00030366,31]
[403876303,1769616646232,-250.000238,0.00030366,31]
[403876304,1769616646241,-630.0,0.00030366,2]
[403876305,1769616646251,-2150.0,0.00030366,2]
[403876306,1769616646260,-1369.0,0.00030366,2]
[403876307,1769616646270,-716.0,0.00030378,2]
[403876308,1769616646279,-179.0,0.00030378,2]
[403876309,1769616646289,-418.0,0.00030378,2]
[403876310,1769616646299,-195.23500925,0.00030411,60]
[403876311,1769616646308,-500.0,0.00030411,60]
[403876312,1769616646319,-500.0,0.00030411,60]
[403876313,1769616646328,-550.0,0.00030411,60]
[403876314,1769616646338,-800.0,0.00030445,2]
[403876315,1769616646347,-800.0,0.0003046,2]
[403876316,1769616646356,-150.0,0.000305,2]
[403876317,1769616646366,-1624.671878,0.000305,3]
[403876318,1769616646375,-250.0,0.000305,10]
[403876319,1769616646385,-400.0,0.00030524,3]
[403876320,1769616646394,-150.0,0.00030534,2]
[403876321,1769616646404,-200.9171616,0.00030548,60]
[403876322,1769616646413,-250.0,0.00030548,60]
[403876323,1769616646423,-200.34117545,0.00030548,60]
[403876324,1769616646433,-500.0,0.00030548,60]
[403876325,1769616646443,-500.0,0.00030548,60]
[403876326,1769616646453,-200.0,0.00030548,60]
[403876327,1769616646463,-203.22,0.00030556,30]
[403876328,1769616646472,-250.0,0.000306,10]
[403876329,1769616646481,-160.0,0.00030613,4]
[403876330,1769616646491,-161.68161754,0.0003063,30]
[403876331,1769616646500,-389.3730592,0.00030658,30]
[403876332,1769616646510,-750.0,0.00030685,5]
[403876333,1769616646519,-200.0,0.00030685,60]
[403876334,1769616646530,-500.0,0.00030685,60]
[403876335,1769616646539,-500.0,0.00030685,60]
[403876336,1769616646548,-1902994.22224959,0.00030694,30]
[403876337,1769616646673,-2478.56969296,0.00030694,30]
[403876338,1769616646685,-381.83772016,0.00030694,30]
[403876339,1769616646696,-10881.02439608,0.00030694,30]
[403876340,1769616646707,-4716.5943524,0.00030694,30]
[403876341,1769616646718,-264.0,0.00030694,30]
[403876342,1769616647256,-500.0,0.00029639,3]
[403876343,1769616647267,-151.0,0.0003,7]
[403876344,1769616647277,-151.0,0.0003,7]
[403876345,1769616647286,-151.0,0.0003,7]
[403876346,1769616647296,-151.0,0.0003,7]
[403876347,1769616647306,-1257.77259651,0.00030694,30]
[403876354,1769616648177,-144340.07564525,0.00030694,30]
[403876355,1769616648191,-430.2784889,0.00030694,30]
[403876356,1769616648203,-3845.15198489,0.00030694,30]
[403876365,1769616727171,153.20421741,0.00034894,120]
[403876366,1769616852761,191.85703901,0.00034894,120]
[403876367,1769616853124,191.85703901,0.00034894,120]
[403876368,1769616903536,1607.0,0.00034894,120]
[403876369,1769616924793,13372.63102548,0.00034894,120]
[403876370,1769617153654,2400.04075676,0.0001,2]
[403876371,1769617153686,10000.01,0.0001,2]
[403876372,1769617153719,10000.01,0.0001,2]
[403876373,1769617153753,10000.01,0.0001,2]
[403876374,1769617153784,10000.01,0.0001,2]
[403876375,1769617153812,10000.01,0.0001,2]
[403876376,1769617153843,10000.01,0.0001,2]
[403876377,1769617153872,10000.01,0.0001,2]
[403876378,1769617153903,10000.01,0.0001,2]
[403876379,1769617153935,10000.01,0.0001,2]
[403876380,1769617153969,576750.86924324,0.0001,2]
[403876383,1769617205007,153.47,0.000109,2]
[403876384,1769617205658,153.47,0.000109,2]
[403876385,1769617206296,153.47,0.000109,2]
[403876386,1769617206784,153.47,0.000109,2]
[403876387,1769617207437,153.47,0.000109,2]
[403876388,1769617208063,153.47,0.000109,2]
[403876389,1769617208564,153.47,0.000109,2]
[403876390,1769617209208,153.47,0.000109,2]
[403876391,1769617209831,153.47,0.000109,2]
[403876392,1769617210367,153.47,0.000109,2]
[403876393,1769617210996,153.47,0.000109,2]
[403876394,1769617211618,153.47,0.000109,2]
[403876395,1769617212287,153.47,0.000109,2]
[403876396,1769617212806,153.47,0.000109,2]
[403876397,1769617213478,153.47,0.000109,2]
[403876398,1769617214110,153.47,0.000109,2]
[403876399,1769617214776,153.47,0.000109,2]
[403876400,1769617215416,153.47,0.000109,2]
[403876401,1769617216061,153.47,0.000109,2]
[403876402,1769617216698,153.47,0.000109,2]
[403876403,1769617217320,153.47,0.000109,2]
[403876404,1769617217920,153.47,0.000109,2]
[403876405,1769617218533,153.47,0.000109,2]
[403876406,1769617218980,153.47,0.000109,2]
[403876407,1769617219484,153.47,0.000109,2]
[403876408,1769617220098,153.47,0.000109,2]
[403876409,1769617221126,153.47,0.000109,2]
[403876410,1769617418635,5000.0,0.00010913,2]
[403876411,1769617440349,856.32,0.00010913,2]
[403876412,1769617440377,4143.68,0.00010913,2]
[403876414,1769617461994,5000.0,0.00010913,2]
[403876415,1769617483706,856.33,0.00010913,2]
[403876416,1769617483732,4143.67,0.00010913,2]
[403876418,1769617496282,5856.34,0.00010336,2]
[403876419,1769617496310,10000.01,0.00010336,2]
[403876420,1769617496335,10000.01,0.00010336,2]
[403876421,1769617496361,10000.01,0.00010336,2]
[403876422,1769617496385,10000.01,0.00010336,2]
[403876423,1769617496408,10000.01,0.00010336,2]
[403876424,1769617496432,10000.01,0.00010336,2]
[403876425,1769617496455,10000.01,0.00010336,2]
[403876426,1769617496481,6959.0515464,0.00010336,2]
[403876427,1769617506047,5000.0,0.00010913,2]
[403876428,1769617527776,5000.0,0.00010913,2]
[403876430,1769617549492,5000.0,0.00010913,2]
[403876432,1769617571391,0.01,0.00010913,2]
[403876433,1769617571421,4999.99,0.00010913,2]
[403876434,1769617579471,5000.0,0.00010913,2]
[403876435,1769617587893,0.02,0.00010913,2]
[403876436,1769617587926,3919.88478027,0.00010913,2]
[403876437,1769617595631,5000.0,0.00010913,2]
[403876438,1769617604157,1080.12521973,0.00010913,2]
[403876439,1769617604184,3422.79911533,0.00010913,2]
[403876440,1769617619000,5000.0,0.00010913,2]
[403876442,1769617641277,5000.0,0.00010913,2]
[403876443,1769617664045,1198.12372774,0.00010913,2]
[403876444,1769617700049,289.59992971,0.0001,2]
[403876445,1769617709306,1000.0,0.0001,2]
[403876447,1769617715656,16845.33272611,0.0001,2]
[403876448,1769617716191,784.13706818,0.0001,2]
[403876449,1769617730461,-982.7234609,0.00010959,2]
[403876450,1769617730501,-294.18330444,0.00011038,2]
[403876451,1769617730537,-300.0,0.00011171,2]
[403876452,1769617730575,-300.0,0.00011171,2]
[403876453,1769617730610,-300.0,0.00011172,2]
[403876454,1769617730647,-300.0,0.00011172,2]
[403876455,1769617730685,-300.0,0.00011172,2]
[403876456,1769617730723,-1200.0,0.00011172,2]
[403876457,1769617730757,-150.21390958,0.00011325,2]
[403876458,1769617730793,-500.0,0.00011356,2]
[403876459,1769617730830,-500.0,0.00011356,2]
[403876460,1769617730868,-253.92909004,0.00011356,2]
[403876461,1769617730905,-150.60770649,0.00011356,2]
[403876462,1769617730942,-500.0,0.00011356,2]
[403876463,1769617730979,-250.36,0.000114,2]
[403876464,1769617731017,-580.0,0.000114,2]
[403876465,1769617731056,-550.0,0.00011493,2]
[403876466,1769617731093,-500.0,0.00011493,2]
[403876467,1769617731129,-500.0,0.00011493,2]
[403876468,1769617731166,-1000.69714462,0.00011596,2]
[403876469,1769617731802,170.666616,0.00011535,2]
[403876470,1769617763170,-500.0,0.00011596,2]
[403876471,1769617763207,-500.0,0.00011596,2]
[403876472,1769617763244,-210.18763459,0.00011596,2]
[403876473,1769617763286,-500.0,0.00011596,2]
[403876474,1769617763330,-500.0,0.00011596,2]
[403876475,1769617763368,-500.0,0.00011596,2]
[403876476,1769617763410,-500.0,0.00011596,2]
[403876477,1769617763448,-500.0,0.00011596,2]
[403876478,1769617763486,-522.40164183,0.00011596,2]
[403876479,1769617763524,-500.0,0.00011596,2]
[403876480,1769617763559,-500.0,0.00011596,2]
[403876481,1769617763603,-500.0,0.00011596,2]
[403876482,1769617763638,-500.0,0.00011596,2]
[403876483,1769617763675,-500.0,0.00011596,2]
[403876484,1769617763710,-596.33402809,0.00011596,2]
[403876485,1769617763754,-522.40164183,0.00011596,2]
[403876486,1769617763792,-500.0,0.00011596,2]
[403876487,1769617763829,-318.28313432,0.00011596,2]
[403876488,1769617763869,-500.0,0.00011596,2]
[403876489,1769617763906,-156.10282258,0.00011596,2]
[403876490,1769617764115,-500.0,0.00011596,2]